bitfinex-derivatives/quotes_BTCF0:USTF0_20241120
["timestamp","ask_amount","ask_price","bid_price","bid_amount"]
[1732142761242,0.053137,94006.0,93992.0,0.44471013]
[1732142761243,0.3608,94006.0,93998.0,0.4112571]
[1732142761445,0.3609107,94006.0,94003.0,0.31750325]
[1732142761646,0.3609107,94006.0,93998.0,0.0303]
[1732142761647,0.053141,93999.0,93998.0,0.0303]
[1732142761857,0.18833348,93999.0,93998.0,0.0303]
[1732142762761,0.12073724,93999.0,93998.0,0.0303]
[1732142762957,0.18933348,93999.0,93998.0,0.0303]
[1732142763848,0.12173724,93999.0,93998.0,0.0303]
[1732142764053,0.15526618,93999.0,93998.0,0.0303]
[1732142764564,0.15626618,93999.0,93998.0,0.0303]
[1732142765755,0.24594618,93999.0,93998.0,0.0303]
[1732142766859,0.24594618,93999.0,93991.0,0.00013723]
[1732142766860,0.053145,93992.0,93991.0,0.00013723]
[1732142767051,0.12074124,93992.0,93991.0,0.00013723]
[1732142768159,0.1308081,93992.0,93991.0,0.00013723]
[1732142768458,0.1318081,93992.0,93991.0,0.00013723]
[1732142769548,0.12174124,93992.0,93991.0,0.00013723]
[1732142769749,0.13172739,93992.0,93991.0,0.00013723]
[1732142769952,0.12174124,93992.0,93991.0,0.00013723]
[1732142770256,0.13172737,93992.0,93991.0,0.00013723]
[1732142770557,0.12174124,93992.0,93991.0,0.00013723]
[1732142772057,0.13170888,93992.0,93991.0,0.00013723]
[1732142772261,0.12174124,93992.0,93991.0,0.00013723]
[1732142772451,0.13171028,93992.0,93991.0,0.00013723]
[1732142772647,0.12174124,93992.0,93991.0,0.00013723]
[1732142773358,0.13170938,93992.0,93991.0,0.00013723]
[1732142773553,0.12174124,93992.0,93991.0,0.00013723]
[1732142773948,0.13172458,93992.0,93991.0,0.00013723]
[1732142774154,0.12174124,93992.0,93991.0,0.00013723]
[1732142774459,0.13172464,93992.0,93991.0,0.00013723]
[1732142774961,0.22127918,93992.0,93991.0,0.00013723]
[1732142776353,0.21130124,93992.0,93991.0,0.00013723]
[1732142776553,0.2212625,93992.0,93991.0,0.00013723]
[1732142777375,0.06410626,93992.0,93991.0,0.00013723]
[1732142777556,0.054145,93992.0,93991.0,0.00013723]
[1732142777963,0.0001107,94006.0,94002.0,0.053138]
[1732142778265,0.0001107,94006.0,94005.0,0.053138]
[1732142778266,0.0532477,94006.0,94005.0,0.053138]
[1732142779069,0.0001107,94006.0,94005.0,0.053138]
[1732142779358,0.41525,94020.0,94012.0,0.053134]
[1732142779359,0.053134,94013.0,94012.0,0.053134]
[1732142779663,0.053134,94013.0,94012.0,0.413934]
[1732142780255,0.05321707,94013.0,94012.0,0.413934]
[1732142781465,0.05321707,94013.0,94012.0,0.414934]
[1732142781466,8.307e-05,94013.0,94012.0,0.414934]
[1732142781774,0.053127,94024.0,94023.0,0.053126]
[1732142782069,0.02285723,94047.0,94023.0,0.413926]
[1732142782253,0.053118,94041.0,94040.0,0.053118]
[1732142782656,0.02285723,94047.0,94035.0,0.3608]
[1732142782657,0.00159593,94047.0,94035.0,0.3608]
[1732142782853,0.05471093,94047.0,94046.0,0.053114]
[1732142795673,0.053116,94044.0,94043.0,0.45032]
[1732142796461,0.053116,94044.0,94043.0,0.3608]
[1732142798358,0.053116,94044.0,94043.0,0.413916]
[1732142802063,0.053116,94044.0,94043.0,0.3608]
[1732142807384,0.06364931,94044.0,94043.0,0.3608]
[1732142808169,0.06364931,94044.0,94043.0,0.67840684]
[1732142808479,0.06364931,94044.0,94043.0,0.3608]
[1732142809472,0.0805745,94044.0,94043.0,0.3608]
[1732142809980,0.08060498,94044.0,94043.0,0.3608]
[1732142810273,0.053117,94041.0,94040.0,0.06762354]
[1732142810781,0.06368968,94041.0,94040.0,0.06762354]
[1732142810971,0.0805938,94041.0,94040.0,0.06762354]
[1732142811281,0.06368968,94041.0,94040.0,0.06762354]
[1732142811482,0.06368968,94041.0,94040.0,0.40061804]
[1732142811781,0.08060992,94041.0,94040.0,0.40061804]
[1732142813470,0.08059139,94041.0,94040.0,0.40061804]
[1732142815367,0.08059139,94041.0,94040.0,0.3329945]
[1732142816266,0.053118,94040.0,94039.0,0.3608]
[1732142816467,0.08059239,94040.0,94039.0,0.3608]
[1732142816869,0.08059239,94040.0,94039.0,0.3109]
[1732142820382,0.08068779,94040.0,94039.0,0.3109]
[1732142822777,0.06372176,94040.0,94039.0,0.3109]
[1732142824170,0.06372176,94040.0,94039.0,0.64641634]
[1732142824770,0.06372176,94040.0,94039.0,0.33551634]
[1732142824980,0.01060376,94040.0,94039.0,0.38213003]
[1732142825181,0.06372176,94040.0,94039.0,0.38213003]
[1732142825385,0.053118,94039.0,94038.0,0.38213003]
[1732142825584,0.01060376,94039.0,94037.0,0.38213003]
[1732142825778,0.01060376,94038.0,94037.0,0.38213003]
[1732142825976,0.06341448,94038.0,94037.0,0.38213003]
[1732142826375,0.053125,94028.0,94027.0,0.06762354]
[1732142826577,0.053125,94028.0,94027.0,0.40527763]
[1732142827085,0.06339924,94028.0,94027.0,0.40527763]
[1732142827886,0.053125,94028.0,94027.0,0.40527763]
[1732142828483,0.053125,94028.0,94027.0,0.84998776]
[1732142828679,0.053125,94028.0,94027.0,0.40527763]
[1732142828991,0.053125,94028.0,94027.0,0.84998776]
[1732142829484,0.053125,94028.0,94027.0,1.24332667]
[1732142829679,0.053125,94028.0,94027.0,1.24440948]
[1732142829880,0.08647499,94028.0,94027.0,0.85282435]
[1732142833694,0.08647499,94028.0,94027.0,0.45950834]
[1732142833890,0.09664997,94028.0,94027.0,0.45950834]
[1732142838284,0.08647499,94028.0,94027.0,0.45950834]
[1732142838791,0.0966619,94028.0,94027.0,0.45950834]
[1732142839297,0.08647499,94028.0,94027.0,0.45950834]
[1732142839490,0.04353588,94028.0,94027.0,0.45950834]
[1732142839881,0.03334999,94028.0,94027.0,0.45950834]
[1732142840085,0.053124,94030.0,94029.0,0.053124]
[1732142840292,0.06330856,94030.0,94029.0,0.7526838]
[1732142841398,0.053124,94030.0,94029.0,1.14599981]
[1732142842193,0.053124,94030.0,94029.0,1.65423996]
[1732142842392,0.053124,94030.0,94029.0,1.14599981]
[1732142842897,0.03370057,94030.0,94029.0,1.65546536]
[1732142843095,0.053117,94042.0,94029.0,1.65546536]
[1732142843300,0.05312,94038.0,94037.0,0.053119]
[1732142843592,0.06332585,94038.0,94037.0,0.3918788]
[1732142844992,0.06332585,94038.0,94037.0,0.7526788]
[1732142845999,0.0633001,94038.0,94037.0,0.7526788]
[1732142846193,0.0633001,94038.0,94037.0,1.14507967]
[1732142846392,0.0633001,94038.0,94037.0,0.78427967]
[1732142846698,0.0633001,94038.0,94037.0,1.23025971]
[1732142846894,0.0633001,94038.0,94037.0,0.78427967]
[1732142847205,0.05312,94038.0,94037.0,0.7526788]
[1732142847390,0.06329022,94038.0,94037.0,0.7526788]
[1732142850999,0.05312,94038.0,94037.0,0.7526788]
[1732142851300,0.06333642,94038.0,94037.0,0.7526788]
[1732142854801,0.06333642,94038.0,94037.0,0.75091846]
[1732142855499,0.06333642,94038.0,94037.0,0.69779946]
[1732142857409,0.13095996,94038.0,94037.0,0.69779946]
[1732142857792,0.06333642,94038.0,94037.0,0.69779946]
[1732142858998,0.44999996,94038.0,94037.0,0.68564437]
[1732142859203,0.44999996,94038.0,94037.0,0.33699946]
[1732142859507,0.44999996,94038.0,94037.0,0.23719946]
[1732142860208,0.053125,94027.0,94026.0,0.3608]
[1732142860704,0.06324095,94027.0,94026.0,0.3608]
[1732142860908,0.053127,94023.0,94022.0,0.51360253]
[1732142861812,0.053127,94023.0,94022.0,0.06762354]
[1732142862112,0.053127,94023.0,94022.0,0.51360253]
[1732142864111,0.053127,94023.0,94022.0,0.44597899]
[1732142864498,0.053128,94022.0,94021.0,0.49910699]
[1732142865712,0.053128,94022.0,94021.0,0.85990699]
[1732142866812,0.053128,94022.0,94021.0,0.413928]
[1732142867011,0.053128,94022.0,94021.0,0.85980331]
[1732142867708,0.053128,94022.0,94021.0,0.80667531]
[1732142867905,0.053128,94022.0,94021.0,0.3608]
[1732142868816,0.12075154,94022.0,94021.0,0.74901898]
[1732142869001,0.48155154,94022.0,94013.0,0.44585106]
[1732142869201,0.06350704,94026.0,94010.0,1.5]
[1732142869202,0.053133,94014.0,94010.0,1.5]
[1732142869408,0.053134,94011.0,94010.0,1.5]
[1732142869608,0.053134,94011.0,94010.0,1.83867466]
[1732142869812,0.053134,94011.0,94010.0,0.33867466]
[1732142870815,0.053134,94011.0,94010.0,0.33967466]
[1732142871202,0.054134,94011.0,94010.0,0.34067466]
[1732142872821,0.12175754,94011.0,94010.0,0.002]
[1732142873008,0.13184749,94011.0,94010.0,0.002]
[1732142873208,0.06422319,94011.0,94010.0,0.002]
[1732142873418,0.12175754,94011.0,94010.0,0.002]
[1732142873609,0.12175754,94011.0,94007.0,0.004]
[1732142873610,0.42073087,94011.0,94007.0,0.004]
[1732142873921,0.413936,94008.0,94007.0,0.003907]
[1732142874115,0.81076366,94008.0,94007.0,0.003907]
[1732142875113,0.49264366,94008.0,94007.0,0.004907]
[1732142875318,0.58168366,94008.0,94007.0,0.004907]
[1732142877621,0.58167985,94008.0,94007.0,0.004907]
[1732142879024,0.58167985,94008.0,94007.0,0.004807]
[1732142879916,0.51405631,94008.0,94007.0,0.004807]
[1732142880109,0.58171985,94008.0,94007.0,0.004807]
[1732142881125,0.58171985,94008.0,94007.0,0.003807]
[1732142881322,0.58271985,94008.0,94007.0,0.003807]
[1732142881521,0.49363985,94008.0,94007.0,0.003807]
[1732142881830,0.49363985,94008.0,94007.0,0.056944]
[1732142881831,0.3628,94008.0,94007.0,0.056944]
[1732142882219,0.002,94008.0,94007.0,0.056944]
[1732142882436,0.3608,94016.0,94010.0,0.053135]
[1732142882627,0.39415654,94016.0,94010.0,0.06762354]
[1732142882929,0.03335654,94016.0,94015.0,0.413932]
[1732142883130,0.08908,94023.0,94021.0,0.053129]
[1732142884121,0.42842354,94025.0,94021.0,0.053129]
[1732142884718,0.002,94022.0,94021.0,0.12075254]
[1732142884920,0.005,94037.0,94036.0,0.05312]
[1732142885223,0.06762354,94045.0,94044.0,0.053116]
[1732142885426,0.06762354,94045.0,94036.0,0.41392]
[1732142885427,0.053111,94053.0,94049.0,0.053112]
[1732142885629,0.06762354,94048.0,94040.0,0.005]
[1732142885825,0.06762354,94048.0,94047.0,0.053114]
[1732142886019,0.07847868,94048.0,94047.0,0.053114]
[1732142886219,0.07847723,94048.0,94047.0,0.053114]
[1732142886426,0.07847765,94048.0,94047.0,0.053114]
[1732142886725,0.06762354,94048.0,94047.0,0.053114]
[1732142891132,0.10161385,94053.0,94052.0,0.053111]
[1732142891320,0.07853437,94053.0,94052.0,0.053111]
[1732142891524,0.06762354,94053.0,94052.0,0.053111]
[1732142894526,0.02124839,94057.0,94048.0,0.0637]
[1732142894726,0.02124839,94057.0,94056.0,0.053109]
[1732142899736,0.07435639,94057.0,94056.0,0.053109]
[1732142901945,0.02124839,94057.0,94056.0,0.053109]
[1732142903443,0.12073154,94058.0,94057.0,0.053108]
[1732142903942,0.14197821,94058.0,94057.0,0.053108]
[1732142906638,0.51376148,94058.0,94057.0,0.053108]
[1732142906840,0.50277821,94058.0,94057.0,0.053108]
[1732142907044,0.14197821,94058.0,94057.0,0.053108]
[1732142909435,0.15297818,94058.0,94057.0,0.053108]
[1732142911045,0.15296893,94058.0,94057.0,0.053108]
[1732142912143,0.14933259,94058.0,94057.0,0.053108]
[1732142913139,0.06409872,94058.0,94057.0,0.053108]
[1732142913342,0.08177753,94058.0,94057.0,0.053108]
[1732142915150,0.08177753,94058.0,94057.0,0.026108]
[1732142915452,0.02866953,94058.0,94057.0,0.026108]
[1732142916450,0.02866953,94058.0,94051.0,0.3608]
[1732142916451,0.053111,94054.0,94053.0,0.053108]
[1732142916643,0.08178053,94054.0,94053.0,0.053108]
[1732142917037,0.08186383,94054.0,94053.0,0.053108]
[1732142917540,0.08176467,94054.0,94053.0,0.053108]
[1732142918636,0.02865367,94054.0,94053.0,0.053108]
[1732142922354,0.01102064,94054.0,94053.0,0.053108]
[1732142923754,0.0110088,94054.0,94053.0,0.053108]
[1732142925354,0.02862887,94054.0,94053.0,0.053108]
[1732142925953,0.0110088,94054.0,94053.0,0.053108]
[1732142927347,0.0110088,94054.0,94053.0,1.553108]
[1732142927556,0.03547099,94060.0,94059.0,0.053107]
[1732142927760,0.03547099,94060.0,94059.0,0.413907]
[1732142928054,0.06404882,94060.0,94059.0,0.413907]
[1732142928653,0.06404882,94060.0,94059.0,0.053107]
[1732142929345,0.06404882,94060.0,94059.0,0.413907]
[1732142929545,0.06404882,94060.0,94059.0,0.053107]
[1732142929755,0.11715582,94060.0,94059.0,0.053107]
[1732142930454,0.11670287,94060.0,94059.0,0.053107]
[1732142931061,0.11670287,94060.0,94059.0,0.43511137]
[1732142932650,0.11670287,94060.0,94059.0,0.053107]
[1732142933758,0.11670287,94060.0,94059.0,0.43513272]
[1732142934146,0.11670287,94060.0,94059.0,0.053107]
[1732142937159,0.10588561,94060.0,94059.0,0.053107]
[1732142937348,0.11611541,94060.0,94059.0,0.053107]
[1732142938161,0.053111,94056.0,94055.0,0.053109]
[1732142938362,0.06370231,94056.0,94055.0,0.053109]
[1732142944453,0.053111,94056.0,94055.0,0.41829241]
[1732142944658,0.053111,94056.0,94055.0,0.92775796]
[1732142944963,0.053111,94056.0,94055.0,0.41829241]
[1732142945150,0.053111,94056.0,94055.0,0.92775796]
[1732142945348,0.0302,94059.0,94055.0,0.053109]
[1732142945554,0.01062414,94058.0,94055.0,0.053109]
[1732142945754,0.01062414,94057.0,94056.0,0.053109]
[1732142946567,0.01062414,94057.0,94051.0,0.053111]
[1732142946862,0.01062414,94056.0,94052.0,0.053111]
[1732142947252,0.01062414,94055.0,94050.0,0.3608]
[1732142947449,0.01062414,94054.0,94053.0,0.05311]
[1732142953166,0.01080632,94054.0,94053.0,0.053111]
[1732142954670,0.02124671,94057.0,94053.0,0.053111]
[1732142954867,0.02124671,94057.0,94056.0,0.053109]
[1732142955066,0.04938555,94057.0,94056.0,0.053109]
[1732142956470,0.02124671,94057.0,94056.0,0.053109]
[1732142956657,0.02820969,94057.0,94056.0,0.053109]
[1732142957059,0.02820969,94057.0,94056.0,0.48501272]
[1732142957255,0.08844,94080.0,94057.0,0.31896]
[1732142957460,0.09003531,94086.0,94085.0,0.053092]
[1732142957768,0.10746955,94086.0,94085.0,0.053092]
[1732142958072,0.01902955,94086.0,94085.0,0.053092]
[1732142958273,0.1,94100.0,94084.0,0.06762354]
[1732142958566,0.01741253,94099.0,94098.0,0.053085]
[1732142959156,0.01741253,94099.0,94097.0,0.06762354]
[1732142959157,0.14180499,94100.0,94097.0,0.06762354]
[1732142959358,0.14180499,94100.0,94099.0,0.053085]
[1732142959568,0.1,94100.0,94099.0,0.053085]
[1732142960674,0.1,94100.0,94099.0,0.371885]
[1732142960871,0.00159491,94106.0,94105.0,0.053081]
[1732142961074,0.00159491,94106.0,94105.0,0.48150454]
[1732142962465,0.00159491,94106.0,94105.0,0.80030454]
[1732142962667,0.00159491,94106.0,94105.0,0.48150454]
[1732142964265,0.00159491,94106.0,94105.0,0.413881]
[1732142964469,0.00159491,94106.0,94105.0,0.48150454]
[1732142967071,0.00159491,94106.0,94105.0,0.56990454]
[1732142967274,0.084964,94135.0,94105.0,0.95632808]
[1732142967477,0.4506,94132.0,94121.0,0.053072]
[1732142967774,0.053071,94123.0,94121.0,0.053072]
[1732142968163,0.02123293,94122.0,94121.0,0.053072]
[1732142968374,0.07430493,94122.0,94121.0,0.053072]
[1732142971870,0.053072,94122.0,94121.0,0.053072]
[1732142973178,0.07220689,94125.0,94121.0,0.053072]
[1732142973369,0.04150689,94125.0,94124.0,0.12069354]
[1732142973571,0.0319,94135.0,94128.0,0.053068]
[1732142973572,0.053068,94129.0,94128.0,0.053068]
[1732142973879,0.053068,94129.0,94128.0,0.12069154]
[1732142975474,0.053066,94133.0,94132.0,0.053065]
[1732142976384,0.07429742,94133.0,94132.0,0.053065]
[1732142977679,0.08557081,94133.0,94132.0,0.053065]
[1732142978872,0.06433939,94133.0,94132.0,0.053065]
[1732142979073,0.01127339,94133.0,94132.0,0.053065]
[1732142979278,0.01127339,94133.0,94132.0,0.413865]
[1732142979669,0.053063,94137.0,94136.0,0.053064]
[1732142979875,0.06432086,94137.0,94136.0,0.053064]
[1732142980171,0.06432086,94137.0,94136.0,0.413864]
[1732142980572,0.053063,94137.0,94136.0,0.413864]
[1732142980889,0.06432342,94137.0,94136.0,0.413864]
[1732142982081,0.01126042,94137.0,94136.0,0.413864]
[1732142983274,0.06432342,94137.0,94136.0,0.413864]
[1732142984091,0.06432342,94137.0,94136.0,0.3109]
[1732142984379,0.08243709,94137.0,94136.0,0.3109]
[1732142984781,0.08243709,94137.0,94136.0,0.37852354]
[1732142985680,0.08243709,94137.0,94136.0,0.06762354]
[1732142986288,0.08243709,94137.0,94136.0,0.12068754]
[1732142986978,0.08246321,94137.0,94136.0,0.12068754]
[1732142988288,0.07115544,94137.0,94136.0,0.12068754]
[1732142988479,0.08253816,94137.0,94136.0,0.12068754]
[1732142989381,0.09897303,94137.0,94136.0,0.12068754]
[1732142989585,0.08253816,94137.0,94136.0,0.12068754]
[1732142990373,0.08248157,94137.0,94136.0,0.12068754]
[1732142993304,0.02941857,94137.0,94136.0,0.12068754]
[1732142993487,0.02941857,94137.0,94136.0,0.12449454]
[1732142995589,0.02941857,94137.0,94136.0,0.21265454]
[1732142996791,0.04248673,94138.0,94136.0,0.091967]
[1732142996989,0.04248673,94138.0,94137.0,0.12068654]
[1732142997185,0.0015944,94142.0,94141.0,0.053061]
[1732142997490,0.03126168,94142.0,94141.0,0.053061]
[1732142997790,0.03789458,94142.0,94141.0,0.053061]
[1732142999396,0.03126168,94142.0,94141.0,0.12449154]
[1732142999592,0.03126168,94142.0,94141.0,0.44317154]
[1732142999790,0.03789435,94142.0,94141.0,0.44317154]
[1732143000098,0.04114045,94146.0,94141.0,1.94317154]
[1732143000399,0.02993161,94145.0,94144.0,0.053059]
[1732143000602,0.00663234,94145.0,94144.0,0.413859]
[1732143000794,0.053053,94156.0,94155.0,0.053053]
[1732143001807,0.05968522,94156.0,94155.0,0.053053]
[1732143002903,0.053053,94156.0,94155.0,0.053053]
[1732143004097,0.053051,94161.0,94160.0,0.05305]
[1732143004496,0.053051,94161.0,94160.0,0.12067354]
[1732143005406,0.40454908,94164.0,94163.0,0.053048]
[1732143005700,0.04242908,94164.0,94163.0,0.413848]
[1732143005891,0.00663169,94164.0,94163.0,0.413848]
[1732143006095,0.00663153,94164.0,94163.0,0.3608]
[1732143006302,0.00663153,94164.0,94163.0,0.413848]
[1732143006807,0.053047,94166.0,94163.0,0.3608]
[1732143007102,0.053047,94166.0,94165.0,0.053047]
[1732143007996,0.053048,94164.0,94163.0,0.3608]
[1732143008501,0.053048,94164.0,94163.0,0.364607]
[1732143009605,0.371648,94164.0,94163.0,0.003807]
[1732143009811,0.053061,94140.0,94139.0,0.06762354]
[1732143010698,0.07111479,94140.0,94139.0,0.06762354]
[1732143012694,0.08218398,94140.0,94139.0,0.06762354]
[1732143013510,0.12444285,94140.0,94139.0,0.06762354]
[1732143014307,0.10638906,94140.0,94139.0,0.06762354]
[1732143015503,0.09531987,94140.0,94129.0,0.3608]
[1732143015802,0.053067,94133.0,94132.0,0.053066]
[1732143017099,0.053067,94133.0,94132.0,0.12068954]
[1732143027420,0.053067,94133.0,94132.0,0.06762354]
[1732143035214,0.053066,94132.0,94131.0,0.0049]
[1732143038410,0.06364139,94132.0,94131.0,0.0049]
[1732143039721,0.06363045,94132.0,94131.0,0.0049]
[1732143041221,0.06360362,94132.0,94131.0,0.0049]
[1732143041521,0.13122716,94132.0,94131.0,0.0049]
[1732143041723,0.44126981,94132.0,94131.0,0.0049]
[1732143042830,0.42440362,94132.0,94131.0,0.0049]
[1732143043027,0.42432836,94132.0,94131.0,0.0049]
[1732143043220,0.44106814,94132.0,94131.0,0.0049]
[1732143045020,0.08026814,94132.0,94131.0,0.0049]
[1732143045220,0.44106814,94132.0,94131.0,0.0049]
[1732143045424,0.08026814,94132.0,94131.0,0.0049]
[1732143045626,0.44106814,94132.0,94131.0,0.0049]
[1732143046018,0.413866,94132.0,94131.0,0.0049]
[1732143046413,0.42450926,94132.0,94131.0,0.0049]
[1732143046615,0.45217963,94132.0,94131.0,0.0049]
[1732143052332,0.44153637,94132.0,94131.0,0.0049]
[1732143053026,0.44151661,94132.0,94131.0,0.0049]
[1732143054134,0.44150696,94132.0,94131.0,0.0049]
[1732143056133,0.43087582,94132.0,94131.0,0.0049]
[1732143056331,0.413866,94132.0,94131.0,0.0049]
[1732143056542,0.44151844,94132.0,94131.0,0.0049]
[1732143061430,0.413866,94132.0,94131.0,0.0049]
[1732143061635,0.44148325,94132.0,94131.0,0.0049]
[1732143065235,0.413866,94132.0,94131.0,0.0049]
[1732143065430,0.42449726,94132.0,94131.0,0.0049]
[1732143065644,0.413866,94132.0,94131.0,0.0049]
[1732143065832,0.4415069,94132.0,94131.0,0.0049]
[1732143066036,0.45851632,94132.0,94131.0,0.0049]
[1732143068742,0.4583152,94132.0,94131.0,0.0049]
[1732143068941,0.0975152,94132.0,94131.0,0.0049]
[1732143071750,0.4583152,94132.0,94131.0,0.0049]
[1732143072560,0.44130519,94132.0,94131.0,0.0049]
[1732143078574,0.413866,94132.0,94131.0,0.0049]
[1732143078765,0.44145591,94132.0,94131.0,0.0049]
[1732143080381,0.52897591,94132.0,94131.0,0.0049]
[1732143081778,0.52893979,94132.0,94131.0,0.0049]
[1732143082177,0.501386,94132.0,94131.0,0.0049]
[1732143082373,0.51832387,94132.0,94131.0,0.0049]
[1732143082580,0.52891003,94132.0,94131.0,0.0049]
[1732143085882,0.52892744,94132.0,94131.0,0.0049]
[1732143086270,0.501386,94132.0,94131.0,0.0049]
[1732143086583,0.52890604,94132.0,94131.0,0.0049]
[1732143087174,0.16810604,94132.0,94131.0,0.0049]
[1732143087973,0.08058604,94132.0,94131.0,0.0049]
[1732143088181,0.04361887,94140.0,94131.0,0.32362]
[1732143088470,0.0049,94143.0,94140.0,0.05306]
[1732143088471,0.053061,94141.0,94140.0,0.05306]
[1732143088669,0.053061,94141.0,94139.0,0.42842354]
[1732143088670,0.0049,94147.0,94144.0,0.053058]
[1732143088882,0.0049,94154.0,94149.0,0.06762354]
[1732143089682,0.053056,94150.0,94149.0,0.12067954]
[1732143089887,0.0106107,94153.0,94149.0,0.06762354]
[1732143090184,0.053049,94163.0,94162.0,0.053049]
[1732143090384,0.0546378,94172.0,94171.0,0.053044]
[1732143090574,0.0546378,94172.0,94171.0,0.48146754]
[1732143090575,0.09610215,94172.0,94171.0,0.48146754]
[1732143091271,0.09610215,94172.0,94171.0,0.12066754]
[1732143094280,0.09610215,94172.0,94171.0,0.48146754]
[1732143094483,0.04305815,94172.0,94171.0,0.48146754]
[1732143097482,0.09610115,94172.0,94171.0,0.48146754]
[1732143100191,0.04305815,94172.0,94171.0,0.48146754]
[1732143101487,0.053039,94180.0,94171.0,0.42842354]
[1732143101681,0.02121897,94186.0,94185.0,0.053036]
[1732143101682,0.053036,94186.0,94185.0,0.053036]
[1732143102013,0.053036,94186.0,94185.0,0.12065954]
[1732143103294,0.09506711,94186.0,94185.0,0.12065954]
[1732143105278,0.09506711,94186.0,94185.0,0.053036]
[1732143105592,0.09506711,94186.0,94185.0,0.12065954]
[1732143107488,0.04203111,94186.0,94185.0,0.43917954]
[1732143107692,0.053033,94190.0,94189.0,0.053033]
[1732143107995,0.053033,94190.0,94189.0,0.20789654]
[1732143110090,0.1,94200.0,94189.0,0.15486354]
[1732143110295,0.053031,94198.0,94197.0,0.12065254]
[1732143110694,0.19497941,94200.0,94199.0,0.053028]
[1732143111785,0.19497941,94200.0,94199.0,0.140268]
[1732143112696,0.20589997,94200.0,94199.0,0.140268]
[1732143113196,0.20590395,94200.0,94199.0,0.140268]
[1732143113386,0.19497941,94200.0,94199.0,0.08724]
[1732143113592,0.053029,94198.0,94197.0,0.06762354]
[1732143113796,0.0639536,94198.0,94197.0,0.15486354]
[1732143114699,0.0639536,94198.0,94197.0,0.06762354]
[1732143114895,0.0639536,94198.0,94197.0,0.15486354]
[1732143115289,0.0639536,94198.0,94197.0,0.06762354]
[1732143115492,0.0639536,94198.0,94197.0,0.15486354]
[1732143116084,0.0639536,94198.0,94197.0,0.06762354]
[1732143116284,0.0639536,94198.0,94197.0,0.20789254]
[1732143117391,0.08144827,94198.0,94197.0,0.20789254]
[1732143117693,0.06396276,94198.0,94197.0,0.20789254]
[1732143118098,0.08138244,94198.0,94197.0,0.12065254]
[1732143118289,0.08138244,94198.0,94197.0,0.20789254]
[1732143118486,0.02835344,94198.0,94197.0,0.20789254]
[1732143118788,0.01093376,94198.0,94197.0,0.56869254]
[1732143118998,0.1,94200.0,94199.0,0.053028]
[1732143119192,0.11088432,94200.0,94199.0,0.12065154]
[1732143119397,0.11088432,94200.0,94199.0,0.053028]
[1732143120595,0.11095048,94200.0,94199.0,0.053028]
[1732143121596,0.16397848,94200.0,94199.0,0.140268]
[1732143122997,0.153028,94200.0,94199.0,0.140268]
[1732143123190,0.16397515,94200.0,94199.0,0.140268]
[1732143124692,0.16397515,94200.0,94199.0,0.053028]
[1732143124886,0.16397515,94200.0,94199.0,0.140268]
[1732143125189,0.16397515,94200.0,94197.0,0.3608]
[1732143125190,0.053029,94198.0,94197.0,0.3608]
[1732143125389,0.06397615,94198.0,94197.0,0.51566354]
[1732143125790,0.06397615,94198.0,94197.0,0.42842354]
[1732143126106,0.06397615,94198.0,94197.0,0.56869254]
[1732143126603,0.053029,94198.0,94197.0,0.56869254]
[1732143126788,0.08139498,94198.0,94197.0,0.48145254]
[1732143126993,0.08139498,94198.0,94197.0,0.51566354]
[1732143127403,0.08139498,94198.0,94197.0,0.42842354]
[1732143127601,0.08139498,94198.0,94197.0,0.37852354]
[1732143127794,0.06393899,94198.0,94197.0,0.261]
[1732143128000,0.05303,94195.0,94194.0,0.0049]
[1732143128298,0.08136375,94195.0,94194.0,0.0049]
[1732143128602,0.053032,94192.0,94191.0,0.06762354]
[1732143128805,0.08136575,94192.0,94191.0,0.06762354]
[1732143129590,0.053032,94192.0,94191.0,0.06762354]
[1732143129801,0.0810463,94192.0,94191.0,0.06762354]
[1732143129993,0.053032,94192.0,94191.0,0.01772354]
[1732143130201,0.053032,94192.0,94182.0,0.053038]
[1732143130202,0.053034,94188.0,94187.0,0.06762354]
[1732143130503,0.06378222,94188.0,94187.0,0.06762354]
[1732143130898,0.08092938,94188.0,94187.0,0.06762354]
[1732143131303,0.053041,94176.0,94175.0,0.06762354]
[1732143131604,0.06378922,94176.0,94175.0,0.06762354]
[1732143132902,0.053041,94176.0,94175.0,0.06762354]
[1732143133104,0.08058597,94176.0,94175.0,0.06762354]
[1732143133309,0.06363522,94176.0,94175.0,0.06762354]
[1732143133996,0.06363522,94176.0,94167.0,0.3608]
[1732143134196,0.053046,94168.0,94167.0,0.3608]
[1732143134402,0.06364022,94168.0,94167.0,0.3608]
[1732143135111,0.01059422,94168.0,94159.0,0.08817]
[1732143135406,0.05305,94160.0,94159.0,0.00093]
[1732143135905,0.08087018,94160.0,94159.0,0.00093]
[1732143136313,0.07031048,94160.0,94159.0,0.00093]
[1732143136507,0.06383029,94160.0,94159.0,0.00093]
[1732143136822,0.08107876,94160.0,94159.0,0.00093]
[1732143137306,0.11267876,94160.0,94159.0,0.00093]
[1732143138208,0.04238029,94160.0,94155.0,0.06762354]
[1732143138509,0.053052,94156.0,94155.0,0.06762354]
[1732143138710,0.053053,94155.0,94154.0,0.053053]
[1732143138905,0.06383329,94155.0,94154.0,0.053053]
[1732143139305,0.053053,94155.0,94154.0,0.053053]
[1732143139607,0.3608,94162.0,94161.0,0.05305]
[1732143139904,0.41309752,94162.0,94161.0,0.05305]
[1732143140412,0.37158173,94162.0,94161.0,0.05305]
[1732143141105,0.37158173,94162.0,94160.0,0.11724]
[1732143141106,0.01077943,94162.0,94160.0,0.11724]
[1732143141330,0.053045,94169.0,94168.0,0.053046]
[1732143141610,0.10561227,94169.0,94168.0,0.053046]
[1732143141814,0.09483507,94169.0,94168.0,0.053046]
[1732143147517,0.09483507,94169.0,94168.0,0.413846]
[1732143151414,0.04179007,94169.0,94168.0,0.413846]
[1732143151719,0.05305,94170.0,94169.0,0.05305]
[1732143156521,0.05630144,94173.0,94172.0,0.053049]
[1732143156719,0.10934944,94173.0,94172.0,0.053049]
[1732143157315,0.11998148,94173.0,94172.0,0.053049]
[1732143159616,0.10934944,94173.0,94172.0,0.053049]
[1732143159924,0.1199641,94173.0,94172.0,0.053049]
[1732143161516,0.05305,94169.0,94168.0,0.3608]
[1732143161718,0.06366466,94169.0,94168.0,0.3608]
[1732143161925,0.06366466,94169.0,94168.0,0.053051]